Cogmind - Beta 15 @@@ ROGUE MODE // 2025.08.12 @ 19:17:40 Player: Carter Result: Destroyed by G-34 Mercenary with Small Laser Performance ------------- Evolutions (1) 500 Regions Visited (2) 400 Robots Destroyed (30) 150 Value Destroyed (718) 718 Prototype IDs (0) 0 Alien Tech Used (0) 0 Bonus (0) 0 TOTAL SCORE: 1768 Bonus ------- None Cogmind --------- Core Integrity 0/400 Matter 300/300 Energy 47/100 System Corruption 2% Temperature Cool (6) Movement Walking (120) Location -9/Materials Parts ------- > --- POWER (1) -------- (None) > --- PROPULSION (4) --- Aluminum Leg > --- UTILITY (2) ------ Heat Sink > --- WEAPON (2) ------- (None) > --- INVENTORY (5) ---- Ion Engine Small Laser Small Laser Light Cannon Hammer Peak State ------------ > --- POWER ------------ Ion Engine > --- PROPULSION ------- Aluminum Leg Aluminum Leg Aluminum Leg Aluminum Leg > --- UTILITY ---------- Core Shielding Power Shielding > --- WEAPON ----------- Small Laser Particle Gun > --- INVENTORY -------- Ion Engine Small Laser Small Laser Light Cannon Hammer [Rating: 10] Favorites ----------- Power Light Ion Engine Engine Light Ion Engine Power Core Light Nuclear Core Propulsion Aluminum Leg Leg Aluminum Leg Utility Power Shielding Device Heat Sink Storage Medium Storage Unit Protection Power Shielding Weapon Small Laser Energy Gun Small Laser Energy Cannon Light EM Pulse Cannon Ballistic Gun Light Assault Rifle Ballistic Cannon Light Cannon Special Weapon Plasma Cutter Impact Weapon Hammer Build | -11 -10 -9 ------- Run | Yrd Mat Mat Slots Evolved 2 | . . 2 Power . | . . . Propulsion 2 | . . 2 Utility . | . . . Weapon . | . . . Parts Attached 33 | 5 14 14 Power 4 | 1 2 1 Engine 3 | 1 1 1 Core 1 | . 1 . Reactor . | . . . Propulsion 8 | 2 . 6 Treads . | . . . Leg 8 | 2 . 6 Wheel . | . . . Hover . | . . . Flight . | . . . Utility 5 | . 4 1 Device 1 | . . 1 Storage 1 | . 1 . Processor . | . . . Hackware . | . . . Protection 3 | . 3 . Artifact . | . . . Weapon 16 | 2 8 6 Energy Gun 7 | 1 2 4 Energy Cannon 1 | . . 1 Ballistic Gun 4 | 1 3 . Ballistic Cannon 2 | . 2 . Launcher . | . . . Special Weapon 1 | . . 1 Impact Weapon 1 | . 1 . Slashing Weapon . | . . . Piercing Weapon . | . . . Special Melee Weapon . | . . . Unidentified Prototypes . | . . . Parts Lost 18 | . 5 13 Power 3 | . 2 1 Propulsion 7 | . 1 6 Utility 2 | . . 2 Weapon 6 | . 2 4 Highest Loss Streak 9 | . 3 9 To Critical Strikes 1 | . . 1 Average Backups 2 | . 1 4 Power . | . . 1 Propulsion . | . . . Utility . | . . . Weapon 1 | . . 3 Tool/Special . | . . . Unused Backups 1 | . . 1 Power 1 | . . 1 Propulsion . | . . . Utility . | . . . Weapon . | . . . Tool/Special . | . . . Average Slot Usage (%) 71 | . 82 55 Engine 8 | . 12 3 Leg 18 | . 18 19 Storage 4 | . 8 . Protection 16 | . 17 15 Energy Gun 8 | . 9 7 Ballistic Gun 5 | . 6 4 Ballistic Cannon 3 | . 6 . Special Weapon 1 | . . 2 Impact Weapon 1 | . 2 . Peak Build Rating 10 | 5 8 10 Average Rating 5 | 3 6 5 On Entrance 4 | . 5 7 Naked Turns 29 | . . 29 Heaviest Build 20 | 6 20 11 Greatest Support 40 | 20 20 40 Greatest Overweight (x) 1 | . 1 1 Average Overweight (x) . | . . . Largest Inventory Capacity 10 | 5 10 5 Average Capacity 6 | 5 7 5 Most Carried 5 | . 4 5 Average Carried 2 | . 1 4 Final Capacity 5 | 5 5 5 Final Carried 5 | . 4 5 Class Distribution -------------------- 85% | Mutant 14% | Scavenger-Mutant Dominant Class ---------------- Mutant | -10/Materials Mutant | -9/Materials Resources | -11 -10 -9 ----------- Run | Yrd Mat Mat Matter Collected 674 | 237 159 278 Remotely . | . . . Salvage Created 824 | 53 321 450 Parts 55 | 3 21 31 Haulers Intercepted . | . . . Recyclers Shooed 2 | . . 2 Parts Field Recycled . | . . . Retrieved Matter . | . . . Parts Self-Destructed . | . . . Prevented . | . . . Kills | -11 -10 -9 ------- Run | Yrd Mat Mat Combat Hostiles Destroyed 24 | 1 11 12 Guns 19 | 1 8 10 Cannons 3 | . 3 . AOE 1 | . . 1 Classes Destroyed 7 | 2 3 2 Worker 3 | . 1 2 Tunneler 1 | 1 . . Operator 1 | . 1 . Watcher 1 | . . 1 Swarmer 7 | . 4 3 Grunt 16 | 1 7 8 Brawler 1 | . . 1 Best Kill Streak 5 | 2 5 4 Combat Bots Only 4 | 1 4 3 Max Kills in Single Turn 2 | 1 1 2 Gunslinging . | . . . Exploded 1 | . . 1 Melee . | . . . Uniques/NPCs Destroyed . | . . . Combat | -11 -10 -9 -------- Run | Yrd Mat Mat Hostile Shots Fired 269 | 11 99 159 Missed 73 | 2 27 44 Hits 196 | 9 72 115 Melee 6 | . . 6 Projectile 190 | 9 72 109 Critical Strikes 1 | . . 1 Damage Taken 2188 | 100 757 1331 Core 639 | 56 176 407 Absorbed by Shields . | . . . Redirected to Shielding 103 | . 36 67 Core Remaining (%) 42 | 77 7 . Volleys Fired 128 | 8 60 60 Largest 2 | 2 2 2 Hottest 105 | 70 70 105 Shots Fired 193 | 16 89 88 Gun 165 | 16 65 84 Cannon 26 | . 24 2 Launcher . | . . . Special 2 | . . 2 Kinetic 83 | 8 61 14 Thermal 108 | 8 28 72 Explosive . | . . . Electromagnetic 2 | . . 2 Robot Hit Streak 10 | 5 10 5 Robot Miss Streak 7 | 3 7 3 Penetration Max . | . . . Secondary Targets 2 | . . 2 Max Gunslinging Chain 1 | . . 1 Shots Hit Robots 112 | 9 54 49 Core Hits 56 | 3 23 30 Critical Kills . | . . . Critical Parts Destroyed . | . . . Critical Strikes 3 | 1 2 . Burn 3 | 1 2 . Melee Attacks . | . . . Impact . | . . . Slashing . | . . . Piercing . | . . . Sneak Attacks . | . . . Combat Hostiles . | . . . Follow-up Attacks . | . . . Damage Inflicted 1512 | 110 626 776 Guns 1182 | 110 423 649 Cannons 228 | . 203 25 Explosions 43 | . . 43 Melee . | . . . Ramming 38 | . . 38 Kinetic 586 | 37 417 132 Thermal 863 | 73 209 581 Explosive . | . . . Electromagnetic 25 | . . 25 Impact . | . . . Slashing . | . . . Piercing . | . . . Highest Corruption 2 | . . 2 Average Corruption 2 | . . 2 Corruption Purged . | . . . Corruption Blocked . | . . . Effects 2 | . . 2 Heat Flow Errors 1 | . . 1 Data Loss (minor) 1 | . . 1 Overload Shots . | . . . Overflow Damage . | . . . Projectiles . | . . . Explosions . | . . . Melee . | . . . Knockbacks 4 | . 4 . Impact . | . . . Kinetic 3 | . 3 . Secondary 1 | . 1 . Self-Inflicted Damage 34 | . . 34 Shots 1 | . . 1 Rammed 2 | . . 2 Targets Rammed 28 | . . 28 Kicked 26 | . . 26 Crushed . | . . . Highest Temperature 258 | 136 134 258 Average Temperature 64 | 69 37 84 Received Heat Transfer 876 | 54 270 552 Siege Activations . | . . . Martial Activations . | . . . Shielding Activations . | . . . Robots Disrupted . | . . . Combat Hostiles . | . . . Robots Corrupted . | . . . Combat Hostiles . | . . . Parts Fried . | . . . Impact Corruptions . | . . . Robots Melted 1 | . . 1 Combat Hostiles 1 | . . 1 Parts Melted 5 | 2 2 1 Heat Transferred 2310 | 296 706 1308 Parts Sabotaged . | . . . Parts Stolen . | . . . Parts Stripped . | . . . Power Chain Reactions 1 | . . 1 Alert | -11 -10 -9 ------- Run | Yrd Mat Mat Maximum Alert Level . | . . . Low Security (%) 100 | 100 100 100 Level 1 . | . . . Level 2 . | . . . Level 3 . | . . . Level 4 . | . . . Level 5 . | . . . High Security . | . . . Max Security . | . . . Peak Influence 167 | 20 105 167 Initial 6 | . 6 . Average 36 | 2 28 55 Influence Increases 674 | 25 280 369 Destroy 0b10 Robot/C 480 | 20 220 240 Destroy 0b10 Robot/NC 30 | 5 10 15 Destroy Leader 82 | . 50 32 Destroy Structure 7 | . . 7 Lose Combat Pursuer 75 | . . 75 Influence Decreases 599 | 15 289 295 Entered New Map 5 | . 4 1 Time Decay 424 | 15 235 174 Lost Part 170 | . 50 120 Squads Dispatched 5 | . 4 1 Investigation 1 | . 1 . Extermination . | . . . Reinforcement 4 | . 3 1 Assault . | . . . Garrison . | . . . Intercept . | . . . Searches Triggered . | . . . Construction Impeded 1 | . . 1 Haulers Reinforced . | . . . Active Scanning Responses . | . . . Cargo Convoy Interrupts . | . . . Stealth | -11 -10 -9 --------- Run | Yrd Mat Mat Distress Signals 5 | . 4 1 Communications Jammed . | . . . Distress Signals . | . . . Times Spotted 55 | 1 28 26 Peak Tracking Total 6 | 1 5 6 Tactical Retreats 3 | . . 3 Traps | -11 -10 -9 ------- Run | Yrd Mat Mat Traps Triggered 1 | . . 1 Indirectly . | . . . Trap Hack Attempts . | . . . Triggered . | . . . Disarmed . | . . . Reprogrammed . | . . . Reused . | . . . Traps Extracted . | . . . Installed . | . . . Triggered . | . . . Machines | -11 -10 -9 ---------- Run | Yrd Mat Mat Machines Disabled . | . . . Max in Single Turn . | . . . Machines Repaired . | . . . Machines Dismantled . | . . . Machines Sabotaged . | . . . Overloaded Fab Kills . | . . . Hacking | -11 -10 -9 --------- Run | Yrd Mat Mat Machines Accessed 4 | . 4 . Terminals 3 | . 3 . Fabricators . | . . . Repair Stations 1 | . 1 . Recycling Units . | . . . Scanalyzers . | . . . Garrison Access . | . . . Total Hacks 8 | . 8 . Successful 2 | . 2 . Failed 6 | . 6 . Catastrophic . | . . . Database Lockouts . | . . . Manual . | . . . Terminals 7 | . 7 . Fabricators . | . . . Repair Stations 1 | . 1 . Recycling Units . | . . . Scanalyzers . | . . . Garrison Access . | . . . Terminal Hacks 2 | . 2 . Record 1 | . 1 . Alert Level 1 | . 1 . Fabricator Hacks . | . . . Repair Station Hacks . | . . . Recycling Unit Hacks . | . . . Scanalyzer . | . . . Garrison Access Hacks . | . . . Unauthorized Hacks . | . . . Terminals . | . . . Fabricators . | . . . Repair Stations . | . . . Recycling Units . | . . . Scanalyzers . | . . . Garrison Access . | . . . Data Cores Recovered . | . . . Used . | . . . Hacking Detections 2 | . 2 . Full Trace Events 1 | . 1 . Feedback Events . | . . . Feedback Blocked . | . . . Robot Schematics Acquired . | . . . Robots Built . | . . . Authchips . | . . . Time . | . . . Total Robot Build Rating . | . . . Part Schematics Acquired . | . . . Parts Built . | . . . Authchips . | . . . Time . | . . . Total Part Build Rating . | . . . Parts Repaired . | . . . Time . | . . . Parts Recycled . | . . . Recycled Matter . | . . . Retrieved Matter . | . . . Retrieved Components . | . . . Parts Scanalyzed . | . . . Part Schematics Acquired . | . . . Parts Damaged . | . . . Bothacking | -11 -10 -9 ------------ Run | Yrd Mat Mat Used RIF Installer . | . . . Robots Hacked . | . . . Non-combat . | . . . Combat . | . . . Robot Hacks Applied . | . . . Relay Couplers Released . | . . . Fabnet Peak Effective % . | . . . Robots Rewired . | . . . Allies Hacked . | . . . Hacks Repelled . | . . . Allies | -11 -10 -9 -------- Run | Yrd Mat Mat Total Allies . | . . . Largest Group . | . . . Highest-Rated Group . | . . . Highest-Rated Ally . | . . . Total Orders . | . . . Ally Attacks . | . . . Total Damage . | . . . Kills . | . . . Allies Corrupted . | . . . Allies Melted . | . . . Intel | -11 -10 -9 ------- Run | Yrd Mat Mat Active Infowar (turns) . | . . . Robot Analysis Total . | . . . Derelict Logs Recovered . | . . . Drone Launches . | . . . Drone Recoveries . | . . . Exploration | -11 -10 -9 ------------- Run | Yrd Mat Mat Turns Passed 1451 | 136 773 542 Spaces Moved 723 | 101 355 267 Core 89 | 20 . 69 Treads . | . . . Legs 634 | 81 355 198 Wheels . | . . . Hover . | . . . Flight . | . . . Fastest Speed 50 | 50 120 50 Average Speed 136 | 106 168 105 Slowest Speed 190 | 120 190 120 Overloaded Moves . | . . . Propulsion Burnouts . | . . . Robots Hopped . | . . . Potential Cave-ins . | . . . Cave-ins Triggered . | . . . Exploration Rate (%) 22 | 7 45 16 Regions Visited 2 Branch Regions . Pre-discovered Areas . | . . . Known Exits Taken . | . . . Unknown Exits Taken 2 | 1 1 . Scrap Searched . | . . . Spaces Dug . | . . . Terrain Destroyed 6 | . . 6 Melee . | . . . Projectile . | . . . AOE 6 | . . 6 Terrain Rammed . | . . . Walls Destroyed . | . . . Machines Disabled . | . . . Actions | -11 -10 -9 --------- Run | Yrd Mat Mat Total 982 | 113 442 427 Wait 63 | . 7 56 Move 721 | 100 354 267 Hop . | . . . Pick Up 4 | . 4 . Fast Attach 23 | 5 6 12 Attach . | . . . Detach 1 | . 1 . Swap 11 | . 8 3 Drop 3 | . 2 1 Fire 128 | 8 60 60 Melee . | . . . Ram 2 | . . 2 Kick 26 | . . 26 Crush . | . . . Escape Stasis . | . . . Rewire . | . . . Trap . | . . . Miscellaneous . | . . . Route ------- -11/Scrapyard -10/Materials (discovered 2 exits: [*Mat] / [*Sub]) -9/Materials History --------- Turn | Location | Event 2 | -11/Scrapyard | Met Revision 17 84 | -11/Scrapyard | Discovered new exit (range 8) 137 | -11/Scrapyard | Entered Materials 308 | -10/Materials | Build established: Mutant 315 | -10/Materials | Core integrity fell below 50% 401 | -10/Materials | Lost 3 parts (1p1n1w) 800 | -10/Materials | Discovered new exit (range 16) 895 | -10/Materials | Core integrity fell below 20% 905 | -10/Materials | Discovered new exit (range 9) 910 | -10/Materials | Entered another Materials area 910 | -9/Materials | Evolved 2 slots: Propulsion x2 1136 | -9/Materials | Lost 3 parts (1n2w) 1307 | -9/Materials | Core integrity fell below 50% 1385 | -9/Materials | Lost 9 parts (1p4n2u2w) 1399 | -9/Materials | Core integrity fell below 20% 1452 | -9/Materials | Destroyed by G-34 Mercenary with Small Laser Last Messages --------------- 01400_ Acquired Aluminum Leg. 01409_ U-05 Engineer lays Concrete. 01410_ Triggered Blade Trap. 01410_ Massive razor-sharp blades shoot up from within the floor. 01410_ Heat Sink severed. 01410_ Lgt. EM Pulse Cannon severed. 01410_ K-01 Serf collects debris. 01413_ Acquired Heat Sink. 01418_ U-05 Engineer builds a Door. 01420_ U-05 Engineer builds a Wall. 01421_ Kicked U-05 Engineer. 01421_ ALERT: Construction progress impeded, dispatching reinforcements to local area. 01422_ U-05 Engineer builds a Wall. 01424_ Acquired 21 matter. 01426_ Kicked U-05 Engineer. 01426_ U-05 Engineer lays Concrete. 01443_ System corrupted: Component data lost. 01451_ Aluminum Leg destroyed. Map ----- +----------------------------------------------------+ | ?????# !! ""?????????????????????????????????? | | ?????# % ! #??????????????????????????????????? | | ?????# ##?????????????????????????????????? | | ?????# T#?????????????????????????????????? | | ###### ####### ??????????????????????????? | | %% % %% ?????????????????????????? | | ######% ?????????????????????????? | | #??# ?????????????????????????? | | #??# ########+#############?????????????????? | | #??# #?# # ##????????????????? | | #??# #?# # """ """ #????????????????? | | #??# % #?#"" # """ """ #?????????????????? | | #??# #?#"T # """ """ #?????????????????? | | #??# #?#"" # #?????????????????? | | #??# #?# ] # "T" #?????????????????? | | ###??# #?######/# #?????????????????? | | ?##### ######## ##+###/######?????????????????? | | Yg #?????????????????????? | | ##############g #?????????????????????? | | % #??????#####?# #?????????????????????? | | #????????????# #?????????????????????? | | #????????????# #?????????????????????? | | %%#????????????# #?????????????????????? | | ######## #????????????# ###########???????????? | | ???????# +????????????# w t a????????? | | ???????# #????????????# @ ????????? | | ???????# #????????????# ????????? | | ??????? ????????????# ##### ####+#+?????????? | | ??????? ????????????# #?????#???????????????? | | ??????? ????????????# #?????????????????????? | | ??????? ????????????# #?????????????????????? | | ??????? ?????????????# g #?????????????????????? | | ??????? ?????????????# #?????????????????????? | | ???????????????????????# #?????????????????????? | | ???????????????????????+ +?????????????????????? | | ???????????????????????# #?????????????????????? | | ???????????????????????# #?????????????????????? | | ???????????????????????# #?????????????????????? | | ???????????????????????? ??????????????????????? | | ???????????????????????? ??????????????????????? | | ???????????????????????? ??????????????????????? | | ?????????????????????????????????????????????????? | | ?????????????????????????????????????????????????? | | ?????????????????????????????????????????????????? | | ?????????????????????????????????????????????????? | | ?????????????????????????????????????????????????? | | ?????????????????????????????????????????????????? | | ?????????????????????????????????????????????????? | | ?????????????????????????????????????????????????? | | ?????????????????????????????????????????????????? | +----------------------------------------------------+ Best States ------------- Heat Dissipation 38 Energy Generation 14 Energy Capacity 250 Matter Stores 300 Matter Capacity 300 Sight Range 16 Terrain Scan Density 10 Core Shielding 20 Power Shielding 33 Evasion (%) 55 Item Schematics ----------------- None Robot Schematics ------------------ None Fabricated ------------ Nothing Repaired ---------- Nothing Alien Tech Used ----------------- None Achievements -------------- Close Call It's Just You Challenges ------------ None Game ------ Seed CombatMyomerNanoactuators Manual? 0 Play Time 00:20:57 Cumulative 2.8 hours Start 2025.08.12 @ 17:21:00 End 2025.08.12 @ 19:17:40 Sessions 2 Manual Loads 0 Difficulty Rogue Special Mode None Game No. 2 Rogue 2 Adventurer 0 Explorer 0 Win Type - Total 0 Types 0/0/0/0/0/0/0/0/0/0 Lore% 0 Gallery% 7 Achievement% 7 Wizard Run 0 Options --------- Layout 2 ASCII 0 Keyboard 1 Movement Vi Keybinds 0 Fullscreen 1 Font 24/Smallcaps Map View 25x22 Zoom Use 39% Tactical HUD 1 Map Filters NONE Filters NONE Steam 1 RUN: 5d14e16b-62c0-4088-b5a6-f839d34065cf